Cogmind - Beta 10.2 *** ADVENTURER MODE // 2020.11.11 @ 09:07:11 // Halloween2020/ForbiddenLore Player: STB Result: Self-destructed Performance ------------- Evolutions (1) 500 Regions Visited (2) 400 Robots Destroyed (28) 140 Value Destroyed (752) 752 Prototype IDs (0) 0 Alien Tech Used (0) 0 Bonus (0) 0 TOTAL SCORE: 1792 Bonus ------- None Cogmind --------- Core Integrity 340/400 Matter 280/300 Energy 430/430 System Corruption 0% Temperature Cool (0) Movement Rolling (110) Ox1 Location -9/Materials Parts ------- > --- POWER (2) -------- Improved Ion Engine Improved Ion Engine > --- PROPULSION (3) --- Compact Wheel Compact Wheel Compact Wheel > --- UTILITY (2) ------ Improved Heat Sink High-capacity Storage Unit > --- WEAPON (2) ------- EM Pulse Gun Small Laser > --- INVENTORY (12) --- Visual Processing Unit Sensor Array Signal Interpreter Hardened Light Armor Plating Small Laser Beam Rifle Grenade Launcher Peak State ------------ > --- POWER ------------ Improved Ion Engine Improved Ion Engine > --- PROPULSION ------- Compact Wheel Compact Wheel Compact Wheel > --- UTILITY ---------- Improved Heat Sink High-capacity Storage Unit > --- WEAPON ----------- EM Pulse Gun Beam Rifle > --- INVENTORY -------- Ion Engine Ion Engine Compact Wheel Compact Wheel Visual Processing Unit Sensor Array Signal Interpreter Hardened Light Armor Plating Small Laser Grenade Launcher [Rating: 15] Favorites ----------- Power Ion Engine Engine Ion Engine Propulsion Compact Wheel Treads Light Treads Leg Aluminum Leg Wheel Compact Wheel Utility High-capacity Storage Unit Device Improved Heat Sink Storage High-capacity Storage Unit Weapon Light Assault Rifle Energy Gun EM Pulse Gun Ballistic Gun Light Assault Rifle Launcher Grenade Launcher Build | -11 -10 -9 ------- Run | Scr Mat Mat Slots Evolved 2 | . . 2 Power 1 | . . 1 Propulsion 1 | . . 1 Utility . | . . . Weapon . | . . . Parts Attached 36 | 6 18 12 Power 6 | 1 2 3 Engine 6 | 1 2 3 Core . | . . . Reactor . | . . . Propulsion 10 | 2 4 4 Treads 2 | 2 . . Leg 2 | . 2 . Wheel 6 | . 2 4 Hover . | . . . Flight . | . . . Utility 4 | 1 3 . Device 2 | . 2 . Storage 2 | 1 1 . Processor . | . . . Hackware . | . . . Protection . | . . . Artifact . | . . . Weapon 16 | 2 9 5 Energy Gun 9 | 2 3 4 Energy Cannon . | . . . Ballistic Gun 4 | . 4 . Ballistic Cannon . | . . . Launcher 3 | . 2 1 Special Weapon . | . . . Impact Weapon . | . . . Slashing Weapon . | . . . Piercing Weapon . | . . . Special Melee Weapon . | . . . Unidentified Prototypes . | . . . Parts Lost 4 | . 2 2 Power . | . . . Propulsion 1 | . . 1 Utility . | . . . Weapon 3 | . 2 1 Highest Loss Streak 2 | . 1 2 Average Slot Usage (%) 97 | . 97 99 Engine 15 | . 14 22 Treads 10 | . 12 . Leg 5 | . 6 . Wheel 13 | . 9 32 Device 11 | . 11 11 Storage 13 | . 14 11 Energy Gun 15 | . 15 18 Ballistic Gun 10 | . 11 3 Naked Turns . | . . . Heaviest Build 52 | 12 42 52 Greatest Support 48 | 40 40 48 Greatest Overweight (x) 2 | 1 2 1 Average Overweight (x) . | . . . Largest Inventory Capacity 12 | 6 12 12 Average Capacity 11 | 5 11 12 Most Carried 11 | 3 11 11 Average Carried 5 | . 5 8 Final Capacity 12 | 6 12 12 Final Carried 11 | . 11 7 Class Distribution -------------------- 78% | Mutant 21% | Scavenger-Mutant Dominant Class ---------------- Mutant | -10/Materials Mutant | -9/Materials Resources | -11 -10 -9 ----------- Run | Scr Mat Mat Matter Collected 572 | 250 206 116 Remotely . | . . . Salvage Created 1109 | . 717 392 Parts 64 | . 42 22 Haulers Intercepted 1 | . 1 . Recyclers Shooed 3 | . 3 . Parts Field Recycled . | . . . Retrieved Matter . | . . . Parts Self-Destructed . | . . . Prevented . | . . . Kills | -11 -10 -9 ------- Run | Scr Mat Mat Combat Hostiles Destroyed 17 | . 10 7 Guns 13 | . 7 6 AOE 3 | . 2 1 Classes Destroyed 6 | . 5 1 Worker 4 | . 4 . Hauler 1 | . 1 . Recycler 3 | . 2 1 Watcher 3 | . 3 . Grunt 14 | . 10 4 Sentry 3 | . . 3 Best Kill Streak 4 | . 4 4 Combat Bots Only 3 | . 2 3 Max Kills in Single Turn 3 | . 3 1 Gunslinging . | . . . Exploded 1 | . 1 1 Melee . | . . . Uniques/NPCs Destroyed . | . . . Combat | -11 -10 -9 -------- Run | Scr Mat Mat Damage Taken 857 | . 546 311 Core 148 | . 88 60 Absorbed by Shields . | . . . Core Remaining (%) 82 | 100 64 . Volleys Fired 66 | . 45 21 Largest 2 | . 2 2 Hottest 96 | . 90 96 Shots Fired 129 | . 87 42 Gun 126 | . 85 41 Cannon . | . . . Launcher 3 | . 2 1 Special . | . . . Kinetic 27 | . 24 3 Thermal 64 | . 47 17 Explosive 3 | . 2 1 Electromagnetic 35 | . 14 21 Robot Hit Streak 17 | . 17 12 Robot Miss Streak 4 | . 3 4 Penetration Max . | . . . Secondary Targets . | . . . Shots Hit Robots 95 | . 65 30 Core Hits 57 | . 39 18 Critical Hits . | . . . Critical Kills . | . . . Critical Parts Destroyed . | . . . Melee Attacks . | . . . Impact . | . . . Slashing . | . . . Piercing . | . . . Sneak Attacks . | . . . Combat Hostiles . | . . . Follow-up Attacks . | . . . Damage Inflicted 1582 | . 1102 480 Guns 1153 | . 752 401 Cannons . | . . . Explosions 414 | . 335 79 Melee . | . . . Ramming 15 | . 15 . Kinetic 161 | . 145 16 Thermal 760 | . 558 202 Explosive 262 | . 230 32 Electromagnetic 384 | . 154 230 Impact . | . . . Slashing . | . . . Piercing . | . . . Highest Corruption . | . . . Average Corruption . | . . . Corruption Purged . | . . . Overload Shots . | . . . Overflow Damage . | . . . Projectiles . | . . . Explosions . | . . . Melee . | . . . Knockbacks . | . . . Impact . | . . . Kinetic . | . . . Secondary . | . . . Self-Inflicted Damage 37 | . 37 . Shots 1 | . 1 . Rammed 4 | . 4 . Targets Rammed 4 | . 4 . Kicked . | . . . Crushed . | . . . Highest Temperature 204 | . 204 27 Average Temperature 60 | . 76 8 Received Heat Transfer 498 | . 381 117 Siege Activations . | . . . Robots Corrupted . | . . . Combat Hostiles . | . . . Parts Fried 1 | . . 1 Impact Corruptions . | . . . Robots Melted 1 | . 1 . Combat Hostiles 1 | . 1 . Parts Melted 2 | . 2 . Heat Transferred 1681 | . 1270 411 Parts Sabotaged . | . . . Parts Stolen . | . . . Parts Stripped . | . . . Power Chain Reactions 3 | . 2 1 Missiles Intercepted . | . . . Alert | -11 -10 -9 ------- Run | Scr Mat Mat Peak Influence 277 | . 216 277 Initial . | . . . Average 60 | . 55 105 Maximum Alert Level 1 | . 1 1 Low Security (%) 96 | 100 97 88 Level 1 3 | . 2 11 Level 2 . | . . . Level 3 . | . . . Level 4 . | . . . Level 5 . | . . . High Security . | . . . Max Security . | . . . Squads Dispatched 4 | . 2 2 Investigation 2 | . 2 . Extermination . | . . . Reinforcement 2 | . . 2 Assault . | . . . Garrison . | . . . Intercept . | . . . Construction Impeded . | . . . Haulers Reinforced . | . . . Stealth | -11 -10 -9 --------- Run | Scr Mat Mat Distress Signals 4 | . 2 2 Communications Jammed . | . . . Distress Signals . | . . . Times Spotted 27 | . 17 10 Peak Tracking Total 4 | . 4 4 Tactical Retreats 1 | . . 1 Traps | -11 -10 -9 ------- Run | Scr Mat Mat Traps Triggered 1 | . 1 . Indirectly . | . . . Trap Hack Attempts . | . . . Triggered . | . . . Disarmed . | . . . Reprogrammed . | . . . Reused . | . . . Traps Extracted . | . . . Installed . | . . . Triggered . | . . . Machines | -11 -10 -9 ---------- Run | Scr Mat Mat Machines Disabled 3 | . . 3 Max in Single Turn 2 | . . 2 Machines Sabotaged . | . . . Garrisons Compromised . | . . . Overloaded Fab Kills . | . . . Fab Network Shutdowns . | . . . Hacking | -11 -10 -9 --------- Run | Scr Mat Mat Machines Accessed 1 | . 1 . Terminals . | . . . Fabricators . | . . . Repair Stations 1 | . 1 . Recycling Units . | . . . Scanalyzers . | . . . Garrison Access . | . . . Total Hacks 5 | . 5 . Successful 4 | . 4 . Failed 1 | . 1 . Catastrophic . | . . . Database Lockouts . | . . . Manual . | . . . Terminals . | . . . Fabricators . | . . . Repair Stations 5 | . 5 . Recycling Units . | . . . Scanalyzers . | . . . Garrison Access . | . . . Terminal Hacks . | . . . Fabricator Hacks . | . . . Repair Station Hacks 4 | . 4 . Scan Component 2 | . 2 . Repair 2 | . 2 . Recycling Unit Hacks . | . . . Scanalyzer . | . . . Garrison Access Hacks . | . . . Unauthorized Hacks . | . . . Terminals . | . . . Fabricators . | . . . Repair Stations . | . . . Recycling Units . | . . . Scanalyzers . | . . . Garrison Access . | . . . Data Cores Recovered . | . . . Used . | . . . Hacking Detections 1 | . 1 . Full Trace Events 1 | . 1 . Feedback Events . | . . . Feedback Blocked . | . . . Robot Schematics Acquired . | . . . Robots Built . | . . . Matter . | . . . Time . | . . . Total Robot Build Rating . | . . . Part Schematics Acquired . | . . . Parts Built . | . . . Matter . | . . . Time . | . . . Total Part Build Rating . | . . . Parts Repaired 2 | . 2 . Time 64 | . 64 . Parts Recycled . | . . . Recycled Matter . | . . . Retrieved Matter . | . . . Retrieved Components . | . . . Parts Scanalyzed . | . . . Part Schematics Acquired . | . . . Parts Damaged . | . . . Bothacking | -11 -10 -9 ------------ Run | Scr Mat Mat Used RIF Installer . | . . . Robots Hacked . | . . . Non-combat . | . . . Combat . | . . . Robot Hacks Applied . | . . . Relay Couplers Released . | . . . Robots Rewired . | . . . Allies Hacked . | . . . Hacks Repelled . | . . . Allies | -11 -10 -9 -------- Run | Scr Mat Mat Total Allies . | . . . Largest Group . | . . . Highest-Rated Group . | . . . Highest-Rated Ally . | . . . Total Orders . | . . . Ally Attacks . | . . . Total Damage . | . . . Kills . | . . . Allies Corrupted . | . . . Allies Melted . | . . . Intel | -11 -10 -9 ------- Run | Scr Mat Mat Robot Analysis Total . | . . . Derelict Logs Recovered . | . . . Drone Launches . | . . . Drone Recoveries . | . . . Exploration | -11 -10 -9 ------------- Run | Scr Mat Mat Turns Passed 1603 | 78 1274 251 Spaces Moved 968 | 48 766 154 Core 14 | 14 . . Treads 292 | 34 258 . Legs 151 | . 151 . Wheels 511 | . 357 154 Hover . | . . . Flight . | . . . Fastest Speed 50 | 50 110 100 Average Speed 136 | 140 142 105 Slowest Speed 180 | 160 180 110 Overloaded Moves . | . . . Propulsion Burnouts . | . . . Robots Hopped . | . . . Cave-ins Triggered . | . . . Exploration Rate (%) 36 | 4 88 17 Regions Visited 2 Branch Regions . Pre-discovered Areas . | . . . Known Exits Taken . | . . . Unknown Exits Taken 2 | 1 1 . Scrap Searched . | . . . Spaces Dug . | . . . Terrain Destroyed 32 | . 24 8 Melee . | . . . Projectile . | . . . AOE 32 | . 24 8 Terrain Rammed . | . . . Walls Destroyed . | . . . Machines Disabled . | . . . Actions | -11 -10 -9 --------- Run | Scr Mat Mat Total 1126 | 59 866 201 Wait . | . . . Move 966 | 47 765 154 Hop . | . . . Pick Up 38 | 6 25 7 Fast Attach . | . . . Attach 15 | 6 5 4 Detach . | . . . Swap 21 | . 13 8 Drop 16 | . 9 7 Fire 66 | . 45 21 Melee . | . . . Ram 3 | . 3 . Kick 1 | . 1 . Crush . | . . . Escape Stasis . | . . . Rewire . | . . . Trap . | . . . Miscellaneous . | . . . Route ------- -11/Scrapyard -10/Materials (discovered 4 exits: [*Mat x3] / [*Min]) -9/Materials (discovered 1 exit: [*Sto]) History --------- Turn | Location | Event 14 | -11/Scrapyard | Discovered new exit (range 15) 79 | -11/Scrapyard | Entered Materials 317 | -10/Materials | Build established: Mutant 579 | -10/Materials | Discovered new exit (range 3) 808 | -10/Materials | Discovered new exit (range 5) 920 | -10/Materials | Build established: Scavenger-Mutant 965 | -10/Materials | Discovered new exit (range 13) 1122 | -10/Materials | Repaired Imp. Heat Sink 1153 | -10/Materials | Repaired Lgt. Assault Rifle 1201 | -10/Materials | Discovered new exit (range 14) 1232 | -10/Materials | Build established: Mutant 1353 | -10/Materials | Entered another Materials area 1353 | -9/Materials | Evolved 2 slots: Power x1, Propulsion x1 1450 | -9/Materials | Discovered new exit (range 6) 1604 | -9/Materials | Self-destructed Last Messages --------------- K-01 Serf cleans the Terminal. U-05 Engineer distress signal alerts nearby ally. K-01 Serf cleans the Terminal. R-06 Scavenger collects Tractor Beam. Chain reaction triggered in Imp. Ion Engine. Y-45 Defender destroyed. Atomic Centrifuge disabled. Terminal disabled. K-01 Serf collects debris. R-06 Scavenger collects Com. Wheel. K-01 Serf collects debris. G-34 Mercenary destroyed. K-01 Serf collects debris. Heat Sink fried. G-34 Mercenary destroyed. K-01 Serf collects debris. R-06 Scavenger collects Sml. Laser. K-01 Serf collects debris. R-06 Scavenger collects Aluminum Leg. K-01 Serf collects debris. Map ----- +----------------------------------------------------+ | ?????????????????????????????????????????????????? | | ?????????????????????????????????????????????????? | | ?????????????????????????????????????????????????? | | ?????????????????????????????????????????????????? | | ?????????????????????????????????????????????????? | | ?????????????????????????????????????????????????? | | ?????????????????????????????????????????????????? | | ?????????????????????????????????????????????????? | | ?????????????????????????????????????????????????? | | ?????????????????????????????????????????????????? | | ?????????????????????????????????????????????????? | | ?????????????????????????????????????????????????? | | ?????????????????????????????????????????????????? | | ?????????????????????????????????????????????????? | | ?????????????????????????????????????????????????? | | ?????????????????????????????????????????????????? | | ?????????????????????????????????????????????????? | | ?????????????????????????????????????????????????? | | ??????????????????????########???????????????????? | | ?????????????????????? ???????????????????? | | ?????????????????? ?? * ????????????????????? | | ?????????????????? ?? o% r?????????????????????? | | ????????????????? ?##!;g####??????????????????? | | ?????????????????# ##[[%= #??????????????????? | | ?????????????????# ##k !a " #??????????????????? | | ?????????????????# ##=k@k " #??????????????????? | | ?????????????????# ## *k""" #??????????????????? | | ?????????????????# ## k #??????????????????? | | ?????????????????# ## #??????????????????? | | ?????????????????# # % #??????????????????? | | ?????????????????# ## ##?????????????????? | | ?????????????????# ## #?????????????????? | | ?????????????????# ## !! #?????????????????? | | ?????????????????# ## =*! #?????????????????? | | ?????????????????# #####+#####?????????????????? | | ?????????????????# #???#%#?????????????????????? | | ?????????????????+ #???#[#?????????????????????? | | ?????????????????# #???#!#####?????????????????? | | ?????????????????### #???#%##!!##????????????????? | | ???????????????????# #???#=## !#????????????????? | | ??????????????????## ##?## ## !#????????????????? | | ????????????####### ### !#????????????????? | | ??????????? + % !#????????????????? | | ????????????# ##### ###*% !!##????????????????? | | ??????????????????##+##?## #####?????????????????? | | ?????????????????? ??# #?????????????????????? | | ?????????????????#/ ## #?????????????????????? | | ?????????????????# ## #??####???????????????? | | ?????????????????+